[Event "Early-Titled-Tuesday-Blitz-January-23-2024"]
[Site "Chess.com"]
[Date "2024.01.23"]
[Round "4"]
[White "Genghis_K"]
[Black "GHANDEEVAM2003"]
[Result "0-1"]
[WhiteElo "2849"]
[BlackElo "3035"]
[TimeControl "180+1"]
[EndTime "8:39:21 PST"]
[Termination "GHANDEEVAM2003 won by resignation"]

1. e4 {[%clk 0:02:51.8]} 1... c6 {[%clk 0:02:59.6]} 2. d4 {[%clk 0:02:51.8]}
2... d5 {[%clk 0:03:00.2]} 3. e5 {[%clk 0:02:52.6]} 3... Bf5 {[%clk 0:02:59.8]}
4. h4 {[%clk 0:02:53]} 4... h6 {[%clk 0:02:58.8]} 5. g4 {[%clk 0:02:52.5]} 5...
Be4 {[%clk 0:02:58.8]} 6. f3 {[%clk 0:02:52.8]} 6... Bh7 {[%clk 0:02:59.4]} 7.
e6 {[%clk 0:02:53.2]} 7... Qd6 {[%clk 0:02:59.1]} 8. exf7+ {[%clk 0:02:51.4]}
8... Kxf7 {[%clk 0:03:00]} 9. f4 {[%clk 0:02:51]} 9... Nf6 {[%clk 0:02:57.7]}
10. Nf3 {[%clk 0:02:49]} 10... Qe6+ {[%clk 0:02:37.6]} 11. Ne5+ {[%clk
0:02:45.6]} 11... Ke8 {[%clk 0:02:37.6]} 12. Bh3 {[%clk 0:02:38.8]} 12... Ne4
{[%clk 0:02:29.7]} 13. Nc3 {[%clk 0:02:18.7]} 13... Nxc3 {[%clk 0:02:06.4]} 14.
bxc3 {[%clk 0:02:18.3]} 14... Be4 {[%clk 0:02:06.9]} 15. O-O {[%clk 0:02:12.2]}
15... Nd7 {[%clk 0:01:50.2]} 16. Kh2 {[%clk 0:02:03.7]} 16... g5 {[%clk
0:01:39.6]} 17. Rb1 {[%clk 0:01:55.9]} 17... b5 {[%clk 0:01:08.5]} 18. a4 {[%clk
0:01:40.4]} 18... a6 {[%clk 0:01:03.6]} 19. Qe2 {[%clk 0:01:40.5]} 19... Bg7
{[%clk 0:00:59.8]} 20. Nxd7 {[%clk 0:01:22.7]} 20... Qxd7 {[%clk 0:00:49.1]} 21.
fxg5 {[%clk 0:01:21.5]} 21... Qd6+ {[%clk 0:00:48.9]} 22. Bf4 {[%clk 0:01:21.4]}
22... e5 {[%clk 0:00:49]} 23. gxh6 {[%clk 0:00:47.6]} 23... exf4 {[%clk
0:00:35]} 24. hxg7 {[%clk 0:00:47.6]} 24... Rg8 {[%clk 0:00:29]} 25. Qf2 {[%clk
0:00:41.7]} 25... f3+ {[%clk 0:00:25.7]} 26. Qg3 {[%clk 0:00:42]} 26... Qe7
{[%clk 0:00:23.8]} 27. axb5 {[%clk 0:00:37]} 27... cxb5 {[%clk 0:00:24.7]} 28.
Rbe1 {[%clk 0:00:35.5]} 28... Rxg7 {[%clk 0:00:19.4]} 29. Rxf3 {[%clk
0:00:35.9]} 29... a5 {[%clk 0:00:18.5]} 30. Rf5 {[%clk 0:00:33.9]} 30... Qc7
{[%clk 0:00:18]} 31. Rxd5 {[%clk 0:00:26.8]} 31... Qxg3+ {[%clk 0:00:17.2]} 32.
Kxg3 {[%clk 0:00:27.7]} 32... Re7 {[%clk 0:00:18.1]} 33. Rxb5 {[%clk 0:00:27]}
33... a4 {[%clk 0:00:18]} 34. Rh5 {[%clk 0:00:20.6]} 34... Kd7 {[%clk
0:00:13.9]} 35. g5+ {[%clk 0:00:16.8]} 35... Kd6 {[%clk 0:00:12.6]} 36. Rh6+
{[%clk 0:00:16.4]} 36... Kd5 {[%clk 0:00:13.1]} 37. Rb6 {[%clk 0:00:12.6]} 37...
Kc4 {[%clk 0:00:11.1]} 38. Re3 {[%clk 0:00:11.6]} 38... a3 {[%clk 0:00:09.4]}
39. Bf1+ {[%clk 0:00:11.3]} 39... Kd5 {[%clk 0:00:09.4]} 40. Rb5+ {[%clk
0:00:04.8]} 40... Kd6 {[%clk 0:00:09.5]} 41. Rb1 {[%clk 0:00:05.3]} 41... Bxc2
{[%clk 0:00:06]} 42. Rxe7 {[%clk 0:00:03.9]} 42... Bxb1 {[%clk 0:00:05.5]} 43.
Re1 {[%clk 0:00:01.2]} 43... a2 {[%clk 0:00:05.8]} 44. Bd3 {[%clk 0:00:02.1]}
44... a1=Q {[%clk 0:00:04.7]} 45. Rxb1 {[%clk 0:00:02.7]} 45... Qxc3 {[%clk
0:00:05.4]} 46. Rb6+ {[%clk 0:00:03.6]} 46... Kc7 {[%clk 0:00:05.4]} 47. Rf6
{[%clk 0:00:04.1]} 47... Qxd3+ {[%clk 0:00:05.8]} 48. Kg4 {[%clk 0:00:05]} 48...
Qxd4+ {[%clk 0:00:06.4]} 49. Rf4 {[%clk 0:00:05.9]} 49... Qd7+ {[%clk
0:00:06.5]} 50. Kh5 {[%clk 0:00:06.5]} 50... Rh8+ {[%clk 0:00:07.1]} 51. Kg6
{[%clk 0:00:06.9]} 51... Qh7+ {[%clk 0:00:07.8]} 52. Kf6 {[%clk 0:00:07.5]}
52... Rf8+ {[%clk 0:00:08.7]} 53. Ke5 {[%clk 0:00:08.1]} 53... Qe7+ {[%clk
0:00:09.4]} 54. Kd4 {[%clk 0:00:08.5]} 54... Rxf4+ {[%clk 0:00:10.3]} 0-1

[Event "Early-Titled-Tuesday-Blitz-January-23-2024"]
[Site "Chess.com"]
[Date "2024.01.23"]
[Round "4"]
[White "ilqar_74"]
[Black "hakanazeri2"]
[Result "1-0"]
[WhiteElo "2893"]
[BlackElo "2578"]
[TimeControl "180+1"]
[EndTime "8:39:22 PST"]
[Termination "ilqar_74 won on time"]

1. e4 {[%clk 0:03:00.9]} 1... c5 {[%clk 0:02:48.2]} 2. Nf3 {[%clk 0:02:56.5]}
2... d6 {[%clk 0:02:47.3]} 3. d4 {[%clk 0:02:56.6]} 3... cxd4 {[%clk 0:02:48.2]}
4. Nxd4 {[%clk 0:02:57.5]} 4... Nf6 {[%clk 0:02:48.2]} 5. Nc3 {[%clk 0:02:58.1]}
5... a6 {[%clk 0:02:41.5]} 6. Be2 {[%clk 0:02:57.9]} 6... e5 {[%clk 0:02:40.9]}
7. Nf5 {[%clk 0:02:58.1]} 7... h6 {[%clk 0:02:33.6]} 8. Ne3 {[%clk 0:02:53.4]}
8... Nc6 {[%clk 0:02:22]} 9. O-O {[%clk 0:02:52.4]} 9... Be6 {[%clk 0:02:19.8]}
10. Ned5 {[%clk 0:02:52.4]} 10... Nd4 {[%clk 0:02:19.7]} 11. Be3 {[%clk
0:02:51.4]} 11... Bxd5 {[%clk 0:02:18.4]} 12. Nxd5 {[%clk 0:02:46.6]} 12...
Nxe2+ {[%clk 0:02:17.5]} 13. Qxe2 {[%clk 0:02:47]} 13... Nxd5 {[%clk 0:02:18.4]}
14. exd5 {[%clk 0:02:47.9]} 14... Be7 {[%clk 0:02:18.1]} 15. c4 {[%clk
0:02:48.5]} 15... O-O {[%clk 0:02:17.9]} 16. b4 {[%clk 0:02:49]} 16... b6 {[%clk
0:02:11.7]} 17. f3 {[%clk 0:02:48.5]} 17... f5 {[%clk 0:02:11.4]} 18. Qf2 {[%clk
0:02:48.4]} 18... Rb8 {[%clk 0:02:09.8]} 19. a4 {[%clk 0:02:46.2]} 19... a5
{[%clk 0:02:08.9]} 20. Rab1 {[%clk 0:02:45.4]} 20... Bh4 {[%clk 0:01:54.3]} 21.
Qe2 {[%clk 0:02:39.4]} 21... axb4 {[%clk 0:01:16.2]} 22. Rxb4 {[%clk 0:02:38.6]}
22... f4 {[%clk 0:01:15.7]} 23. Bf2 {[%clk 0:02:35.8]} 23... Qc7 {[%clk
0:01:10.9]} 24. Rfb1 {[%clk 0:02:34.1]} 24... Bxf2+ {[%clk 0:01:05.4]} 25. Qxf2
{[%clk 0:02:35]} 25... Ra8 {[%clk 0:01:04.3]} 26. Qxb6 {[%clk 0:02:31.9]} 26...
Qxb6+ {[%clk 0:01:02.7]} 27. Rxb6 {[%clk 0:02:32]} 27... Rxa4 {[%clk 0:01:03.4]}
28. Rxd6 {[%clk 0:02:29.2]} 28... Rxc4 {[%clk 0:01:03.3]} 29. Rd7 {[%clk
0:02:26.1]} 29... Rfc8 {[%clk 0:00:57.5]} 30. d6 {[%clk 0:02:11.6]} 30... Rc1+
{[%clk 0:00:50.1]} 31. Rxc1 {[%clk 0:02:11.7]} 31... Rxc1+ {[%clk 0:00:49.5]}
32. Kf2 {[%clk 0:02:12.3]} 32... Rd1 {[%clk 0:00:48.3]} 33. Ke2 {[%clk
0:02:10.2]} 33... Rd5 {[%clk 0:00:47.1]} 34. g3 {[%clk 0:02:08.4]} 34... Kh7
{[%clk 0:00:40.7]} 35. Rd8 {[%clk 0:02:04.7]} 35... Kg6 {[%clk 0:00:40.6]} 36.
d7 {[%clk 0:02:00]} 36... Kf7 {[%clk 0:00:39.6]} 37. g4 {[%clk 0:01:56.7]} 37...
Ke7 {[%clk 0:00:25.8]} 38. Rg8 {[%clk 0:01:54.2]} 38... g5 {[%clk 0:00:24.2]}
39. Rg6 {[%clk 0:01:40.5]} 39... Kxd7 {[%clk 0:00:16.6]} 40. Rxh6 {[%clk
0:01:40.8]} 40... Rd6 {[%clk 0:00:14.7]} 41. Rh7+ {[%clk 0:01:39.1]} 41... Ke6
{[%clk 0:00:13.4]} 42. Rh5 {[%clk 0:01:26.6]} 42... Rc6 {[%clk 0:00:10.3]} 43.
Kd3 {[%clk 0:01:24.8]} 43... Kd5 {[%clk 0:00:10]} 44. Rxg5 {[%clk 0:01:23.1]}
44... Ra6 {[%clk 0:00:10.7]} 45. h4 {[%clk 0:01:18.4]} 45... Ra3+ {[%clk
0:00:10.7]} 46. Ke2 {[%clk 0:01:18.9]} 46... Kd4 {[%clk 0:00:11.2]} 47. h5
{[%clk 0:01:14.9]} 47... Ra2+ {[%clk 0:00:10.4]} 48. Ke1 {[%clk 0:01:15.2]}
48... e4 {[%clk 0:00:08.8]} 49. Rb5 {[%clk 0:01:08.3]} 49... exf3 {[%clk
0:00:03.9]} 50. h6 {[%clk 0:01:01.6]} 50... f2+ {[%clk 0:00:03]} 51. Kf1 {[%clk
0:01:00.8]} 51... Ke3 {[%clk 0:00:03.4]} 52. Rb3+ {[%clk 0:01:00.1]} 52... Ke4
{[%clk 0:00:04]} 53. h7 {[%clk 0:00:54.8]} 53... Ra1+ {[%clk 0:00:04.5]} 54.
Kxf2 {[%clk 0:00:54.5]} 54... Ra2+ {[%clk 0:00:05.4]} 55. Kg1 {[%clk 0:00:54.7]}
55... Ra1+ {[%clk 0:00:05.7]} 56. Kg2 {[%clk 0:00:55]} 56... Ra2+ {[%clk
0:00:04.2]} 57. Kh3 {[%clk 0:00:49.2]} 57... Ra8 {[%clk 0:00:04.7]} 58. Rb7
{[%clk 0:00:46.8]} 58... Rh8 {[%clk 0:00:03.5]} 59. Re7+ {[%clk 0:00:42.3]}
59... Kd5 {[%clk 0:00:01.9]} 60. g5 {[%clk 0:00:42.5]} 60... Kd6 {[%clk
0:00:02.4]} 61. Rg7 {[%clk 0:00:39.7]} 61... Ke6 {[%clk 0:00:02.5]} 62. Kg4
{[%clk 0:00:37.2]} 62... f3 {[%clk 0:00:01.7]} 63. Kxf3 {[%clk 0:00:37.5]} 63...
Kf5 {[%clk 0:00:02.1]} 64. g6 {[%clk 0:00:31.7]} 1-0

[Event "Early-Titled-Tuesday-Blitz-January-23-2024"]
[Site "Chess.com"]
[Date "2024.01.23"]
[Round "4"]
[White "Tejas_Rama"]
[Black "cthulhuuu"]
[Result "0-1"]
[WhiteElo "2633"]
[BlackElo "2445"]
[TimeControl "180+1"]
[EndTime "8:39:22 PST"]
[Termination "cthulhuuu won by resignation"]

1. d4 {[%clk 0:03:00.9]} 1... Nf6 {[%clk 0:02:59.7]} 2. c4 {[%clk 0:03:01.2]}
2... e5 {[%clk 0:02:59.5]} 3. dxe5 {[%clk 0:03:01]} 3... Ng4 {[%clk 0:02:59.9]}
4. e4 {[%clk 0:03:01.3]} 4... Nxe5 {[%clk 0:02:59.6]} 5. f4 {[%clk 0:03:01.7]}
5... Nec6 {[%clk 0:03:00]} 6. Nc3 {[%clk 0:02:36.6]} 6... Bc5 {[%clk 0:02:59.7]}
7. Na4 {[%clk 0:02:33.8]} 7... Bb4+ {[%clk 0:02:55.6]} 8. Kf2 {[%clk 0:02:21.3]}
8... Qe7 {[%clk 0:02:03.5]} 9. Bd3 {[%clk 0:02:17.8]} 9... f5 {[%clk 0:01:37.7]}
10. exf5 {[%clk 0:01:46.5]} 10... O-O {[%clk 0:01:20.4]} 11. Nf3 {[%clk
0:01:46.7]} 11... Re8 {[%clk 0:01:13.3]} 12. a3 {[%clk 0:01:17.7]} 12... Bc5+
{[%clk 0:01:11.4]} 13. Nxc5 {[%clk 0:01:17.4]} 13... Qxc5+ {[%clk 0:01:12.3]}
14. Kg3 {[%clk 0:01:17.9]} 14... a5 {[%clk 0:01:12.5]} 15. Re1 {[%clk
0:01:14.6]} 15... Rxe1 {[%clk 0:01:05.3]} 16. Qxe1 {[%clk 0:01:12.6]} 16... Ne7
{[%clk 0:01:05]} 17. Qe5 {[%clk 0:00:48.1]} 17... Na6 {[%clk 0:00:29.4]} 18. Be3
{[%clk 0:00:43.5]} 18... Qd6 {[%clk 0:00:21.4]} 19. Qxd6 {[%clk 0:00:41]} 19...
cxd6 {[%clk 0:00:22.3]} 20. b4 {[%clk 0:00:34.7]} 20... d5 {[%clk 0:00:18]} 21.
c5 {[%clk 0:00:31.4]} 21... Nc7 {[%clk 0:00:18.3]} 22. Rb1 {[%clk 0:00:26.4]}
22... axb4 {[%clk 0:00:17.7]} 23. axb4 {[%clk 0:00:27.3]} 23... Ra3 {[%clk
0:00:17.7]} 24. Rd1 {[%clk 0:00:20]} 24... Nxf5+ {[%clk 0:00:18]} 25. Bxf5
{[%clk 0:00:18.2]} 25... Rxe3 {[%clk 0:00:18.9]} 26. Kf2 {[%clk 0:00:18]} 26...
Rb3 {[%clk 0:00:18.3]} 27. Rd4 {[%clk 0:00:11.1]} 27... Ne6 {[%clk 0:00:17.8]}
28. Bxe6+ {[%clk 0:00:10.6]} 28... dxe6 {[%clk 0:00:18]} 29. Ne5 {[%clk
0:00:10.7]} 29... Kf8 {[%clk 0:00:16.9]} 30. h3 {[%clk 0:00:08.4]} 30... Ke7
{[%clk 0:00:17.1]} 31. Nd3 {[%clk 0:00:08.5]} 31... Bd7 {[%clk 0:00:17]} 32. Ke3
{[%clk 0:00:08.9]} 32... Bb5 {[%clk 0:00:17]} 33. Kd2 {[%clk 0:00:09]} 33...
Bxd3 {[%clk 0:00:17.4]} 34. Rxd3 {[%clk 0:00:09.1]} 34... Rxb4 {[%clk
0:00:18.3]} 35. g3 {[%clk 0:00:09.2]} 35... Rb5 {[%clk 0:00:17]} 36. Rc3 {[%clk
0:00:09.2]} 36... Kd7 {[%clk 0:00:17.4]} 37. Kd3 {[%clk 0:00:09.8]} 37... Kc6
{[%clk 0:00:17.8]} 38. Kd4 {[%clk 0:00:10.5]} 38... Rb4+ {[%clk 0:00:16.6]} 39.
Kd3 {[%clk 0:00:11.1]} 39... g6 {[%clk 0:00:15.4]} 40. h4 {[%clk 0:00:04.8]}
40... h5 {[%clk 0:00:15.3]} 41. Kd2 {[%clk 0:00:05.4]} 41... Rc4 {[%clk
0:00:13.5]} 42. Ra3 {[%clk 0:00:04.6]} 42... Kxc5 {[%clk 0:00:10.5]} 43. Ra8
{[%clk 0:00:05.4]} 43... b5 {[%clk 0:00:10.6]} 44. Rg8 {[%clk 0:00:06]} 44... b4
{[%clk 0:00:10.9]} 45. Rxg6 {[%clk 0:00:06.4]} 45... Kd4 {[%clk 0:00:11.1]} 46.
Rg8 {[%clk 0:00:06.2]} 46... b3 {[%clk 0:00:11.1]} 47. Rb8 {[%clk 0:00:06.2]}
47... Rc2+ {[%clk 0:00:11.4]} 48. Kd1 {[%clk 0:00:06.8]} 48... Kc3 {[%clk
0:00:08.5]} 49. Rc8+ {[%clk 0:00:06.2]} 49... Kb2 {[%clk 0:00:08.9]} 50. Rb8
{[%clk 0:00:06.9]} 50... Rg2 {[%clk 0:00:08.7]} 51. g4 {[%clk 0:00:05]} 51...
Rxg4 {[%clk 0:00:08.5]} 52. f5 {[%clk 0:00:05.8]} 52... exf5 {[%clk 0:00:08.6]}
53. Rb5 {[%clk 0:00:06.7]} 53... Rxh4 {[%clk 0:00:08.3]} 54. Rxd5 {[%clk
0:00:07.4]} 54... Rf4 {[%clk 0:00:08.5]} 55. Rb5 {[%clk 0:00:07.6]} 55... h4
{[%clk 0:00:08.7]} 0-1

[Event "Early-Titled-Tuesday-Blitz-January-23-2024"]
[Site "Chess.com"]
[Date "2024.01.23"]
[Round "4"]
[White "DuleMudule"]
[Black "Squirlolz"]
[Result "0-1"]
[WhiteElo "2852"]
[BlackElo "2585"]
[TimeControl "180+1"]
[EndTime "8:39:27 PST"]
[Termination "Squirlolz won by resignation"]

1. d4 {[%clk 0:03:00.9]} 1... Nf6 {[%clk 0:02:59]} 2. Bg5 {[%clk 0:03:00.7]}
2... c6 {[%clk 0:02:53.2]} 3. Nd2 {[%clk 0:02:56.6]} 3... d5 {[%clk 0:02:50.5]}
4. e3 {[%clk 0:02:55.1]} 4... Bf5 {[%clk 0:02:49.4]} 5. Bd3 {[%clk 0:02:48]}
5... e6 {[%clk 0:02:47.2]} 6. Ngf3 {[%clk 0:02:44.7]} 6... Nbd7 {[%clk
0:02:44.5]} 7. Ne5 {[%clk 0:02:43.9]} 7... Be7 {[%clk 0:02:42.8]} 8. Ndf3 {[%clk
0:02:34.1]} 8... Nxe5 {[%clk 0:02:34.8]} 9. Nxe5 {[%clk 0:02:31.6]} 9... O-O
{[%clk 0:02:26.2]} 10. O-O {[%clk 0:02:29]} 10... Ne4 {[%clk 0:02:24.3]} 11.
Bxe7 {[%clk 0:02:27.7]} 11... Qxe7 {[%clk 0:02:25.2]} 12. c4 {[%clk 0:02:25.7]}
12... Rfd8 {[%clk 0:02:17.2]} 13. Qc2 {[%clk 0:02:22.1]} 13... Nd6 {[%clk
0:02:14.7]} 14. c5 {[%clk 0:02:21.3]} 14... Bxd3 {[%clk 0:02:12.2]} 15. Nxd3
{[%clk 0:02:11.9]} 15... Nf5 {[%clk 0:01:57.1]} 16. b4 {[%clk 0:02:11.1]} 16...
f6 {[%clk 0:01:56.8]} 17. a4 {[%clk 0:02:05.3]} 17... Nh4 {[%clk 0:01:49.6]} 18.
b5 {[%clk 0:02:00]} 18... e5 {[%clk 0:01:48.1]} 19. Nb4 {[%clk 0:01:50.1]} 19...
Qe6 {[%clk 0:01:41.6]} 20. Qd1 {[%clk 0:01:36.8]} 20... g6 {[%clk 0:01:03.8]}
21. a5 {[%clk 0:01:30.4]} 21... cxb5 {[%clk 0:00:50.2]} 22. a6 {[%clk
0:01:29.5]} 22... bxa6 {[%clk 0:00:51.1]} 23. Rxa6 {[%clk 0:01:27.9]} 23... Qf5
{[%clk 0:00:51.8]} 24. Qb1 {[%clk 0:01:14.9]} 24... Qg4 {[%clk 0:00:45.4]} 25.
g3 {[%clk 0:01:04.1]} 25... Nf3+ {[%clk 0:00:37.1]} 26. Kg2 {[%clk 0:01:03.5]}
26... Nh4+ {[%clk 0:00:37.4]} 27. Kg1 {[%clk 0:01:02.3]} 27... exd4 {[%clk
0:00:25.5]} 28. Rxf6 {[%clk 0:00:53.7]} 28... Nf3+ {[%clk 0:00:18.2]} 29. Kg2
{[%clk 0:00:45]} 29... Nh4+ {[%clk 0:00:18.5]} 30. Kh1 {[%clk 0:00:41]} 30...
Nf5 {[%clk 0:00:14.2]} 31. exd4 {[%clk 0:00:20.4]} 31... Qxd4 {[%clk 0:00:12.3]}
32. Nc6 {[%clk 0:00:19.8]} 32... Qxf6 {[%clk 0:00:11.1]} 33. Nxd8 {[%clk
0:00:19.7]} 33... Rxd8 {[%clk 0:00:12]} 34. Qxb5 {[%clk 0:00:19.7]} 34... d4
{[%clk 0:00:12.2]} 35. c6 {[%clk 0:00:18.4]} 35... Rc8 {[%clk 0:00:10.6]} 36.
Qb7 {[%clk 0:00:16.9]} 36... Qxc6+ {[%clk 0:00:10]} 37. Qxc6 {[%clk 0:00:15.6]}
37... Rxc6 {[%clk 0:00:10.9]} 38. Kg2 {[%clk 0:00:15.7]} 38... d3 {[%clk
0:00:10]} 39. Rd1 {[%clk 0:00:14.6]} 39... Rd6 {[%clk 0:00:09.8]} 40. Kf3 {[%clk
0:00:15.5]} 40... a5 {[%clk 0:00:06.1]} 41. Ke4 {[%clk 0:00:16.4]} 41... d2
{[%clk 0:00:05.4]} 42. g4 {[%clk 0:00:16]} 42... Ne7 {[%clk 0:00:04.9]} 43. Ke3
{[%clk 0:00:15.2]} 43... Kg7 {[%clk 0:00:04.9]} 44. f4 {[%clk 0:00:12.6]} 44...
h6 {[%clk 0:00:04.7]} 45. h4 {[%clk 0:00:12.1]} 45... g5 {[%clk 0:00:05.2]} 46.
hxg5 {[%clk 0:00:12]} 46... hxg5 {[%clk 0:00:06.1]} 47. fxg5 {[%clk 0:00:12.1]}
47... Kg6 {[%clk 0:00:04.6]} 48. Rxd2 {[%clk 0:00:13]} 48... Rxd2 {[%clk
0:00:04.8]} 49. Kxd2 {[%clk 0:00:13.8]} 49... Kxg5 {[%clk 0:00:05.1]} 50. Kd3
{[%clk 0:00:14.7]} 50... Kxg4 {[%clk 0:00:05.4]} 51. Kc4 {[%clk 0:00:15]} 51...
Nc6 {[%clk 0:00:06.3]} 52. Kb5 {[%clk 0:00:14.8]} 52... Kf4 {[%clk 0:00:06.8]}
53. Kc5 {[%clk 0:00:12.7]} 53... Ke4 {[%clk 0:00:07]} 54. Kxc6 {[%clk
0:00:12.2]} 54... a4 {[%clk 0:00:07]} 55. Kb5 {[%clk 0:00:10.3]} 55... a3 {[%clk
0:00:07.9]} 56. Kb4 {[%clk 0:00:08.3]} 56... a2 {[%clk 0:00:08.8]} 57. Kb3
{[%clk 0:00:07.9]} 57... a1=Q {[%clk 0:00:08.6]} 0-1

[Event "Early-Titled-Tuesday-Blitz-January-23-2024"]
[Site "Chess.com"]
[Date "2024.01.23"]
[Round "4"]
[White "Yaacovn"]
[Black "GameOverBro"]
[Result "1/2-1/2"]
[WhiteElo "2773"]
[BlackElo "2560"]
[TimeControl "180+1"]
[EndTime "8:39:27 PST"]
[Termination "Game drawn - insufficient material"]

1. d4 {[%clk 0:02:59]} 1... Nf6 {[%clk 0:02:58.2]} 2. e3 {[%clk 0:02:59.3]} 2...
b6 {[%clk 0:02:56.7]} 3. Nf3 {[%clk 0:02:57.4]} 3... Bb7 {[%clk 0:02:57.2]} 4.
Be2 {[%clk 0:02:58]} 4... e6 {[%clk 0:02:57.5]} 5. O-O {[%clk 0:02:58.6]} 5...
d5 {[%clk 0:02:57.3]} 6. b3 {[%clk 0:02:59.1]} 6... Nbd7 {[%clk 0:02:56.2]} 7.
Bb2 {[%clk 0:02:59.6]} 7... Rg8 {[%clk 0:02:55]} 8. Ne5 {[%clk 0:02:58.6]} 8...
Nxe5 {[%clk 0:02:54.1]} 9. dxe5 {[%clk 0:02:58.5]} 9... Ne4 {[%clk 0:02:47.1]}
10. f3 {[%clk 0:02:58.4]} 10... Nc5 {[%clk 0:02:44.8]} 11. c4 {[%clk 0:02:55.4]}
11... Qh4 {[%clk 0:02:41.3]} 12. cxd5 {[%clk 0:02:47.6]} 12... O-O-O {[%clk
0:02:41.2]} 13. Qe1 {[%clk 0:02:41]} 13... Qxe1 {[%clk 0:02:34.4]} 14. Rxe1
{[%clk 0:02:41.9]} 14... Rxd5 {[%clk 0:02:28.7]} 15. e4 {[%clk 0:02:30.6]} 15...
Rd7 {[%clk 0:02:24.5]} 16. Nc3 {[%clk 0:02:28.6]} 16... Nd3 {[%clk 0:02:22.3]}
17. Bxd3 {[%clk 0:02:28.4]} 17... Rxd3 {[%clk 0:02:17.8]} 18. Rad1 {[%clk
0:02:12]} 18... Bc5+ {[%clk 0:02:17.2]} 19. Kf1 {[%clk 0:02:11.7]} 19... Rgd8
{[%clk 0:02:16]} 20. Rxd3 {[%clk 0:02:10.7]} 20... Rxd3 {[%clk 0:02:15.7]} 21.
Rd1 {[%clk 0:02:11.1]} 21... Rxd1+ {[%clk 0:02:13.8]} 22. Nxd1 {[%clk 0:02:11]}
22... Ba6+ {[%clk 0:02:13.8]} 23. Ke1 {[%clk 0:02:11.3]} 23... Bg1 {[%clk
0:02:12.5]} 24. h3 {[%clk 0:02:11]} 24... c5 {[%clk 0:02:10.9]} 25. Bc1 {[%clk
0:02:07]} 25... Kd7 {[%clk 0:02:07.9]} 26. Be3 {[%clk 0:02:02.2]} 26... Bh2
{[%clk 0:02:00.8]} 27. f4 {[%clk 0:02:01.2]} 27... g5 {[%clk 0:02:00.9]} 28.
fxg5 {[%clk 0:01:56.5]} 28... Bxe5 {[%clk 0:02:00.2]} 29. Kd2 {[%clk 0:01:54.3]}
29... Bb7 {[%clk 0:01:56.1]} 30. Kd3 {[%clk 0:01:51.1]} 30... Ba6+ {[%clk
0:01:56.1]} 31. Kd2 {[%clk 0:01:51.1]} 31... Bb7 {[%clk 0:01:55.7]} 32. Nf2
{[%clk 0:01:50.7]} 32... Kd6 {[%clk 0:01:43.9]} 33. Kd3 {[%clk 0:01:42.1]} 33...
Ba6+ {[%clk 0:01:42.7]} 34. Kd2 {[%clk 0:01:41]} 34... Bf1 {[%clk 0:01:42.5]}
35. g4 {[%clk 0:01:36.9]} 35... Bg2 {[%clk 0:01:42.3]} 36. Ke2 {[%clk
0:01:27.4]} 36... Bg3 {[%clk 0:01:38.6]} 37. Nd3 {[%clk 0:01:17.3]} 37... Bxe4
{[%clk 0:01:36.6]} 38. Bf4+ {[%clk 0:01:17]} 38... Bxf4 {[%clk 0:01:35.4]} 39.
Nxf4 {[%clk 0:01:17.9]} 39... Bb1 {[%clk 0:01:29.7]} 40. Kd2 {[%clk 0:01:17.6]}
40... Bxa2 {[%clk 0:01:28.2]} 41. Kc2 {[%clk 0:01:15.7]} 41... c4 {[%clk
0:01:28.6]} 42. b4 {[%clk 0:01:15.6]} 42... a5 {[%clk 0:01:23.5]} 43. bxa5
{[%clk 0:01:13.6]} 43... bxa5 {[%clk 0:01:23.8]} 44. Kc3 {[%clk 0:01:11.8]}
44... e5 {[%clk 0:01:22.5]} 45. Ng2 {[%clk 0:01:09.6]} 45... Kc5 {[%clk
0:01:19]} 46. Ne3 {[%clk 0:01:08.9]} 46... a4 {[%clk 0:01:18.5]} 47. Nf5 {[%clk
0:01:02.3]} 47... a3 {[%clk 0:01:16.9]} 48. Nh6 {[%clk 0:01:01.8]} 48... e4
{[%clk 0:01:13.7]} 49. Nxf7 {[%clk 0:01:01.1]} 49... e3 {[%clk 0:01:14.1]} 50.
Ne5 {[%clk 0:00:59.4]} 50... Bb3 {[%clk 0:01:06.4]} 51. Nf3 {[%clk 0:00:48.1]}
51... a2 {[%clk 0:01:05.1]} 52. Kb2 {[%clk 0:00:47]} 52... Kd5 {[%clk
0:01:05.3]} 53. Ne1 {[%clk 0:00:44.7]} 53... Kd4 {[%clk 0:01:01.2]} 54. h4
{[%clk 0:00:43.8]} 54... c3+ {[%clk 0:01:01.1]} 55. Kxb3 {[%clk 0:00:43.9]}
55... e2 {[%clk 0:00:28.6]} 56. Kxa2 {[%clk 0:00:36.4]} 56... Ke3 {[%clk
0:00:28.4]} 57. Kb3 {[%clk 0:00:35.7]} 57... Kf4 {[%clk 0:00:24.9]} 58. Kxc3
{[%clk 0:00:09]} 58... Kxg4 {[%clk 0:00:24.3]} 59. Ng2 {[%clk 0:00:07.9]} 59...
e1=Q+ {[%clk 0:00:23.8]} 60. Nxe1 {[%clk 0:00:07]} 60... Kxh4 {[%clk 0:00:22.7]}
61. Nf3+ {[%clk 0:00:07.1]} 61... Kg4 {[%clk 0:00:23]} 62. Ng1 {[%clk 0:00:05]}
62... Kxg5 {[%clk 0:00:23.1]} 63. Kd2 {[%clk 0:00:05.5]} 63... h5 {[%clk
0:00:23.5]} 64. Ke2 {[%clk 0:00:05.7]} 64... h4 {[%clk 0:00:24.4]} 65. Kf2
{[%clk 0:00:06.3]} 65... h3 {[%clk 0:00:25.3]} 66. Nxh3+ {[%clk 0:00:06.4]}
1/2-1/2